fUST/lending_fUST_20240119
["ID","MTS","AMOUNT","RATE_DAILY","PERIOD"]
[312115863,1705642249726,-519.12215261,0.0003315,3]
[312115864,1705642249735,-500.0,0.0003315,3]
[312115865,1705642249744,-5460.48,0.0003315,3]
[312115866,1705642249754,-500.0,0.0003315,3]
[312115867,1705642249763,-500.0,0.0003315,3]
[312115868,1705642249772,-509.23576103,0.0003315,3]
[312115869,1705642249781,-500.0,0.0003315,3]
[312115870,1705642249790,-500.0,0.0003315,3]
[312115871,1705642249800,-617.40713115,0.0003315,3]
[312115872,1705642249809,-516.49737207,0.0003315,3]
[312115873,1705642249822,-500.0,0.0003315,3]
[312115874,1705642249832,-500.0,0.0003315,2]
[312115875,1705642249841,-626.85001841,0.0003315,3]
[312115876,1705642249850,-500.0,0.0003315,3]
[312115877,1705642249859,-500.0,0.0003315,3]
[312115878,1705642249868,-500.0,0.0003315,3]
[312115879,1705642249878,-500.0,0.0003315,3]
[312115880,1705642249887,-500.0,0.0003315,3]
[312115881,1705642249896,-537.79242082,0.0003315,3]
[312115882,1705642249905,-500.0,0.0003315,3]
[312115883,1705642249915,-500.0,0.0003315,3]
[312115884,1705642249924,-169.85993175,0.0003315,3]
[312115885,1705642249933,-1729.78,0.0003315,3]
[312115886,1705642249942,-500.0,0.0003315,3]
[312115887,1705642249951,-503.11281892,0.0003315,3]
[312115888,1705642249961,-500.0,0.0003315,3]
[312115889,1705642249970,-703.4,0.0003315,3]
[312115890,1705642249979,-502.48,0.0003315,3]
[312115891,1705642249989,-500.0,0.0003315,3]
[312115892,1705642249998,-500.0,0.0003315,3]
[312115893,1705642250007,-500.0,0.0003315,3]
[312115894,1705642250017,-500.0,0.0003315,3]
[312115895,1705642250028,-500.0,0.0003315,3]
[312115896,1705642250037,-500.0,0.0003315,3]
[312115897,1705642250046,-271.81304611,0.0003315,3]
[312115898,1705642250055,-2573.61,0.0003315,3]
[312115899,1705642250067,-500.0,0.0003315,3]
[312115900,1705642250076,-500.0,0.0003315,3]
[312115901,1705642250085,-500.0,0.0003315,3]
[312115902,1705642250095,-500.0,0.0003315,3]
[312115903,1705642250104,-500.0,0.0003315,3]
[312115904,1705642250113,-230.92803459,0.0003315,3]
[312115905,1705642250123,-500.47952673,0.0003315,3]
[312115906,1705642250132,-2346.2,0.0003315,3]
[312115907,1705642250142,-500.0,0.0003315,3]
[312115908,1705642250151,-500.0,0.0003315,3]
[312115909,1705642250160,-500.0,0.0003315,3]
[312115910,1705642250170,-500.0,0.0003315,3]
[312115911,1705642250181,-500.0,0.0003315,3]
[312115912,1705642250190,-500.0,0.0003315,3]
[312115913,1705642250200,-500.0,0.0003315,3]
[312115914,1705642250210,-500.0,0.0003315,3]
[312115915,1705642250219,-2506.63,0.0003315,3]
[312115916,1705642250229,-500.0,0.0003315,3]
[312115917,1705642250239,-500.47571973,0.0003315,3]
[312115918,1705642250248,-500.0,0.0003315,3]
[312115919,1705642250258,-500.0,0.0003315,3]
[312115920,1705642250268,-503.42522656,0.0003315,3]
[312115921,1705642250277,-500.0,0.0003315,3]
[312115922,1705642250287,-763.21,0.0003315,3]
[312115923,1705642250296,-500.0,0.0003315,3]
[312115924,1705642250305,-500.0,0.0003315,3]
[312115925,1705642250318,-502.83768509,0.0003315,3]
[312115926,1705642250328,-500.0,0.0003315,3]
[312115927,1705642250337,-500.0,0.0003315,3]
[312115928,1705642250346,-500.0,0.0003315,2]
[312115929,1705642250356,-500.0,0.0003315,3]
[312115930,1705642250368,-500.0,0.0003315,3]
[312115931,1705642250378,-500.0,0.0003315,2]
[312115932,1705642250388,-500.0,0.0003315,3]
[312115933,1705642250397,-500.0,0.0003315,3]
[312115934,1705642250407,-240.94076007,0.0003315,3]
[312115935,1705642250416,-500.0,0.0003315,3]
[312115936,1705642250427,-500.0,0.0003315,3]
[312115937,1705642250440,-500.0,0.0003315,3]
[312115938,1705642250450,-500.0,0.0003315,3]
[312115939,1705642250460,-500.0,0.0003315,3]
[312115940,1705642250470,-151.0,0.0003315,2]
[312115941,1705642250480,-151.0,0.0003315,2]
[312115942,1705642250489,-151.0,0.0003315,2]
[312115943,1705642250499,-267.991024,0.0003315,2]
[312115944,1705642250508,-151.0,0.0003315,2]
[312115945,1705642250517,-151.0,0.0003315,2]
[312115946,1705642250527,-395.206782,0.0003315,2]
[312115947,1705642250536,-395.206782,0.0003315,2]
[312115948,1705642250545,-395.206782,0.0003315,2]
[312115949,1705642250555,-395.206782,0.0003315,2]
[312115950,1705642250564,-151.0,0.0003315,2]
[312115951,1705642250574,-151.0,0.0003315,2]
[312115952,1705642250583,-500.90504742,0.00033424,3]
[312115953,1705642250592,-500.0,0.00033424,3]
[312115954,1705642250602,-504.67298462,0.00033424,3]
[312115955,1705642250611,-500.0,0.00033424,3]
[312115956,1705642250621,-500.0,0.00033424,3]
[312115957,1705642250630,-500.0,0.00033424,3]
[312115958,1705642250639,-500.0,0.00033424,3]
[312115959,1705642250648,-500.0,0.00033424,3]
[312115960,1705642250658,-500.0,0.00033424,3]
[312115961,1705642250668,-500.0,0.00033424,3]
[312115962,1705642250677,-507.84931594,0.00033424,3]
[312115963,1705642250686,-505.36171351,0.00033424,3]
[312115964,1705642250695,-500.0,0.00033424,3]
[312115965,1705642250704,-504.19286789,0.00033424,3]
[312115966,1705642250713,-506.72043248,0.00033424,3]
[312115967,1705642250722,-512.50623965,0.00033424,3]
[312115968,1705642250732,-502.40674425,0.00033424,3]
[312115969,1705642250741,-482.66606596,0.00033424,3]
[312115970,1705642250751,-502.35821217,0.00033424,3]
[312115971,1705642250760,-501.96821226,0.00033424,3]
[312115972,1705642250769,-501.48152421,0.00033424,3]
[312115973,1705642250779,-500.0,0.00033424,3]
[312115974,1705642250842,-500.0,0.00033424,3]
[312115975,1705642250853,-501.21004478,0.00033424,3]
[312115976,1705642250863,-501.72399123,0.00033424,3]
[312115977,1705642250873,-464.34796433,0.00033424,3]
[312115978,1705642250883,-585.9606387,0.00033424,3]
[312115979,1705642250892,-442.01048546,0.00033424,3]
[312115980,1705642250901,-506.64965042,0.00033424,3]
[312115981,1705642250910,-500.0,0.00033424,3]
[312115982,1705642250920,-502.80187139,0.00033424,3]
[312115983,1705642250930,-501.18705401,0.00033424,3]
[312115984,1705642250940,-500.0,0.00033424,3]
[312115985,1705642250949,-500.0,0.00033424,3]
[312115986,1705642250958,-500.0,0.00033424,3]
[312115987,1705642250968,-500.0,0.00033424,3]
[312115988,1705642250977,-500.0,0.00033424,3]
[312115989,1705642250987,-500.0,0.00033424,3]
[312115990,1705642250997,-500.0,0.00033424,3]
[312115991,1705642251007,-500.0,0.00033424,3]
[312115992,1705642251017,-500.0,0.00033424,3]
[312115993,1705642251027,-500.0,0.00033424,3]
[312115994,1705642251037,-500.0,0.00033424,3]
[312115995,1705642251046,-500.0,0.00033424,3]
[312115996,1705642251056,-500.0,0.00033424,3]
[312115997,1705642251065,-500.0,0.00033424,3]
[312115998,1705642251074,-500.0,0.00033424,3]
[312115999,1705642251083,-500.0,0.00033424,3]
[312116000,1705642251092,-500.0,0.00033424,3]
[312116001,1705642251102,-503.57909718,0.00033424,3]
[312116002,1705642251112,-500.0,0.00033424,14]
[312116003,1705642251121,-500.0,0.00033424,3]
[312116004,1705642251130,-500.0,0.00033424,3]
[312116005,1705642251139,-500.69125708,0.00033424,3]
[312116006,1705642251149,-500.0,0.00033424,3]
[312116007,1705642251158,-503.56614441,0.00033424,3]
[312116008,1705642251167,-500.0,0.00033424,3]
[312116009,1705642251177,-500.0,0.00033424,3]
[312116010,1705642251186,-503.21859856,0.00033424,3]
[312116011,1705642251195,-505.50777111,0.00033424,3]
[312116012,1705642251204,-500.0,0.00033424,3]
[312116013,1705642251213,-505.22432973,0.00033424,3]
[312116014,1705642251222,-500.0,0.00033424,3]
[312116015,1705642251232,-500.0,0.00033424,3]
[312116016,1705642251240,-500.0,0.00033424,3]
[312116017,1705642251249,-505.39441684,0.00033424,3]
[312116018,1705642251258,-500.0,0.00033424,3]
[312116019,1705642251268,-507.36376259,0.00033424,3]
[312116020,1705642251277,-1000.0,0.00033424,2]
[312116021,1705642251287,-500.0,0.00033424,3]
[312116022,1705642251296,-500.0,0.00033424,3]
[312116023,1705642251305,-547.63,0.00033424,3]
[312116024,1705642251314,-500.0,0.00033424,3]
[312116025,1705642251324,-500.0,0.00033424,3]
[312116026,1705642251333,-500.0,0.00033424,3]
[312116027,1705642251342,-504.00329423,0.00033424,3]
[312116028,1705642251351,-212.7852503,0.00033424,3]
[312116029,1705642251360,-500.0,0.00033424,3]
[312116030,1705642251370,-500.0,0.00033424,3]
[312116031,1705642251379,-500.0,0.00033424,3]
[312116032,1705642251388,-521.3858914,0.00033424,3]
[312116033,1705642251398,-502.1634203,0.00033424,3]
[312116034,1705642251407,-588.12453349,0.00033424,3]
[312116035,1705642251417,-503.71487664,0.00033424,3]
[312116036,1705642251427,-608.26509235,0.00033424,3]
[312116037,1705642251441,-500.0,0.00033424,3]
[312116038,1705642251451,-502.95572955,0.00033424,3]
[312116039,1705642251461,-500.0,0.00033424,3]
[312116040,1705642251471,-500.0,0.00033424,3]
[312116041,1705642251481,-1002.64129724,0.00033424,2]
[312116042,1705642251491,-500.0,0.00033424,3]
[312116043,1705642251500,-150.0,0.00033424,3]
[312116044,1705642251510,-500.0,0.00033424,3]
[312116045,1705642251520,-500.0,0.00033424,3]
[312116046,1705642251530,-500.0,0.00033424,3]
[312116047,1705642251539,-500.0,0.00033424,3]
[312116048,1705642251548,-500.0,0.00033424,3]
[312116049,1705642251558,-500.0,0.00033424,3]
[312116050,1705642251567,-500.0,0.00033424,3]
[312116051,1705642251577,-500.0,0.00033424,3]
[312116052,1705642251587,-500.0,0.00033424,3]
[312116053,1705642251597,-503.73008274,0.00033424,3]
[312116054,1705642251606,-500.0,0.00033424,3]
[312116055,1705642251616,-513.7826788,0.00033424,3]
[312116056,1705642251626,-510.22380767,0.00033424,3]
[312116057,1705642251636,-404.49007753,0.00033424,3]
[312116058,1705642251645,-502.90873801,0.00033424,3]
[312116059,1705642251655,-509.74467699,0.00033424,3]
[312116060,1705642251665,-500.0,0.00033424,3]
[312116061,1705642251675,-627.68,0.00033424,3]
[312116062,1705642251684,-500.0,0.00033424,3]
[312116063,1705642251694,-500.0,0.00033424,3]
[312116064,1705642251703,-500.0,0.00033424,3]
[312116065,1705642251713,-1288.13,0.00033424,3]
[312116066,1705642251722,-502.88424517,0.00033424,3]
[312116067,1705642251731,-500.0,0.00033424,3]
[312116068,1705642251741,-500.0,0.00033424,3]
[312116069,1705642251751,-500.0,0.00033424,3]
[312116070,1705642251760,-502.47371861,0.00033424,3]
[312116071,1705642251770,-369.67469477,0.00033424,3]
[312116072,1705642251779,-968.28,0.00033424,3]
[312116073,1705642251788,-712.94,0.00033424,3]
[312116074,1705642251797,-505.27819913,0.00033424,3]
[312116075,1705642251807,-500.0,0.00033424,3]
[312116076,1705642251817,-500.0,0.00033424,3]
[312116077,1705642251826,-518.51183488,0.00033424,3]
[312116078,1705642251889,-882.02,0.00033424,3]
[312116079,1705642251898,-500.0,0.00033424,3]
[312116080,1705642251908,-500.0,0.00033424,3]
[312116081,1705642251917,-500.0,0.00033424,3]
[312116082,1705642251926,-507.59096993,0.00033424,3]
[312116083,1705642251935,-1012.5,0.00033424,3]
[312116084,1705642251945,-912.0,0.00033424,3]
[312116085,1705642251954,-1028.62,0.00033424,3]
[312116086,1705642251963,-500.0,0.00033424,3]
[312116087,1705642251972,-8065.62,0.00033424,3]
[312116088,1705642251982,-500.0,0.00033424,3]
[312116089,1705642251991,-810.73,0.00033424,3]
[312116090,1705642252000,-1980.19,0.00033424,3]
[312116091,1705642252010,-510.93446959,0.00033424,3]
[312116092,1705642252020,-5460.48,0.00033424,3]
[312116093,1705642252029,-500.0,0.00033424,3]
[312116094,1705642252039,-500.0,0.00033424,3]
[312116095,1705642252049,-500.0,0.00033424,3]
[312116096,1705642252058,-500.0,0.00033424,3]
[312116097,1705642252067,-499.99997079,0.00033424,3]
[312116098,1705642252076,-502.52294116,0.00033424,2]
[312116099,1705642252086,-500.0,0.00033424,3]
[312116100,1705642252095,-612.1162508,0.00033424,3]
[312116101,1705642252105,-187.93193822,0.00033424,3]
[312116102,1705642252114,-496.32547003,0.00033424,3]
[312116103,1705642252123,-500.0,0.00033424,3]
[312116104,1705642252133,-1729.78,0.00033424,3]
[312116105,1705642252142,-518.27555561,0.00033424,3]
[312116106,1705642252151,-500.0,0.00033424,3]
[312116107,1705642252161,-703.4,0.00033424,3]
[312116108,1705642252171,-502.48,0.00033424,3]
[312116109,1705642252181,-502.94284792,0.00033424,3]
[312116110,1705642252190,-507.01155118,0.00033424,3]
[312116111,1705642252200,-500.0,0.00033424,3]
[312116112,1705642252210,-500.0,0.00033424,3]
[312116113,1705642252219,-500.0,0.00033424,3]
[312116114,1705642252229,-500.0,0.00033424,3]
[312116115,1705642252239,-2573.61,0.00033424,3]
[312116116,1705642252249,-500.0,0.00033424,3]
[312116117,1705642252258,-500.0,0.00033424,3]
[312116118,1705642252268,-504.64136939,0.00033424,3]
[312116119,1705642252277,-512.79042051,0.00033424,3]
[312116120,1705642252286,-500.0,0.00033424,3]
[312116121,1705642252296,-2346.2,0.00033424,3]
[312116122,1705642252305,-500.0,0.00033424,3]
[312116123,1705642252315,-500.0,0.00033424,3]
[312116124,1705642252326,-500.0,0.00033424,3]
[312116125,1705642252335,-500.0,0.00033424,3]
[312116126,1705642252345,-500.0,0.00033424,3]
[312116127,1705642252355,-500.0,0.00033424,3]
[312116128,1705642252365,-500.0,0.00033424,3]
[312116129,1705642252375,-500.0,0.00033424,3]
[312116130,1705642252386,-2506.63,0.00033424,3]
[312116131,1705642252423,-500.0,0.00033424,3]
[312116132,1705642252435,-504.0014974,0.00033424,3]
[312116133,1705642252445,-501.94159678,0.00033424,3]
[312116134,1705642252454,-500.0,0.00033424,3]
[312116135,1705642252463,-763.21,0.00033424,3]
[312116136,1705642252473,-500.0,0.00033424,3]
[312116137,1705642252483,-500.0,0.00033424,3]
[312116138,1705642252492,-500.0,0.00033424,3]
[312116139,1705642252501,-500.0,0.00033424,3]
[312116140,1705642252511,-500.0,0.00033424,2]
[312116141,1705642252521,-195.7337572,0.00033424,3]
[312116142,1705642252531,-491.60142791,0.00033424,3]
[312116143,1705642252541,-500.81551736,0.00033424,2]
[312116144,1705642252550,-506.1218786,0.00033424,3]
[312116145,1705642252559,-500.0,0.00033424,3]
[312116146,1705642252569,-506.25030617,0.00033424,3]
[312116147,1705642252579,-500.0,0.00033424,3]
[312116148,1705642252589,-500.0,0.00033424,3]
[312116149,1705642252598,-507.61838618,0.00033424,3]
[312116150,1705642252608,-500.41281024,0.00033424,3]
[312116151,1705642252618,-151.0,0.00033424,2]
[312116152,1705642252627,-395.206782,0.00033424,2]
[312116153,1705642252636,-395.206782,0.00033424,2]
[312116154,1705642252646,-377.785524,0.00033425,2]
[312116155,1705642252655,-323.676,0.00033429,7]
[312116156,1705642252665,-407.15703081,0.00033429,7]
[312116157,1705642252674,-500.0,0.00033429,7]
[312116158,1705642252684,-500.0,0.00033429,7]
[312116159,1705642252693,-271.1332382,0.00033429,7]
[312116160,1705642252702,-346.89350522,0.00033429,7]
[312116161,1705642252712,-500.0,0.00033429,7]
[312116162,1705642252721,-200.0,0.00033509,15]
[312116163,1705642252730,-348.0,0.00033509,15]
[312116164,1705642252739,-153.95835482,0.00033595,7]
[312116165,1705642252749,-501.4837234,0.00033698,3]
[312116166,1705642252758,-500.0,0.00033698,3]
[312116167,1705642252768,-500.0,0.00033698,3]
[312116168,1705642252777,-500.0,0.00033698,3]
[312116169,1705642252787,-500.0,0.00033698,3]
[312116170,1705642252797,-500.0,0.00033698,3]
[312116171,1705642252807,-500.0,0.00033698,3]
[312116172,1705642252816,-500.0,0.00033698,3]
[312116173,1705642252876,-500.0,0.00033698,3]
[312116174,1705642252885,-500.0,0.00033698,3]
[312116175,1705642252894,-500.0,0.00033698,3]
[312116176,1705642252903,-501.42981573,0.00033698,3]
[312116177,1705642252913,-500.0,0.00033698,3]
[312116178,1705642252922,-500.0,0.00033698,3]
[312116179,1705642252931,-500.0,0.00033698,3]
[312116180,1705642252940,-500.0,0.00033698,3]
[312116181,1705642252949,-500.0,0.00033698,3]
[312116182,1705642252959,-500.0,0.00033698,3]
[312116183,1705642252967,-504.68063983,0.00033698,3]
[312116184,1705642252977,-595.1791592,0.00033698,3]
[312116185,1705642252986,-500.0,0.00033698,3]
[312116186,1705642252994,-500.0,0.00033698,3]
[312116187,1705642253003,-500.0,0.00033698,3]
[312116188,1705642253012,-500.0,0.00033698,3]
[312116189,1705642253021,-356.98673676,0.00033698,3]
[312116190,1705642253030,-503.50962741,0.00033698,3]
[312116191,1705642253039,-501.85237378,0.00033698,3]
[312116192,1705642253048,-500.0,0.00033698,14]
[312116193,1705642253056,-500.0,0.00033698,3]
[312116194,1705642253065,-220.94293272,0.00033698,3]
[312116195,1705642253076,-502.27871451,0.00033698,3]
[312116196,1705642253085,-630.94392972,0.00033698,3]
[312116197,1705642253094,-503.81106822,0.00033698,3]
[312116198,1705642253103,-496.21513945,0.00033698,3]
[312116199,1705642253112,-500.0,0.00033698,3]
[312116200,1705642253121,-500.0,0.00033698,3]
[312116201,1705642253129,-500.0,0.00033698,3]
[312116202,1705642253138,-505.34721411,0.00033698,3]
[312116203,1705642253147,-502.82563989,0.00033698,3]
[312116204,1705642253156,-510.49124954,0.00033698,3]
[312116205,1705642253165,-504.90585891,0.00033698,3]
[312116206,1705642253174,-500.0,0.00033698,3]
[312116207,1705642253183,-500.0,0.00033698,3]
[312116208,1705642253192,-492.00719133,0.00033698,3]
[312116209,1705642253200,-500.0,0.00033698,3]
[312116210,1705642253209,-500.0,0.00033698,3]
[312116211,1705642253219,-500.0,0.00033698,3]
[312116212,1705642253229,-500.0,0.00033698,3]
[312116213,1705642253238,-150.0,0.00033698,3]
[312116214,1705642253247,-396.41630454,0.00033698,3]
[312116215,1705642253257,-500.0,0.00033698,3]
[312116216,1705642253266,-500.0,0.00033698,3]
[312116217,1705642253275,-510.23718748,0.00033698,3]
[312116218,1705642253285,-500.0,0.00033698,3]
[312116219,1705642253294,-500.0,0.00033698,3]
[312116220,1705642253303,-500.0,0.00033698,3]
[312116221,1705642253312,-361.41289464,0.00033698,3]
[312116222,1705642253322,-500.0,0.00033698,3]
[312116223,1705642253330,-500.0,0.00033698,3]
[312116224,1705642253339,-627.68,0.00033698,3]
[312116225,1705642253349,-500.87285916,0.00033698,3]
[312116226,1705642253358,-500.0,0.00033698,3]
[312116227,1705642253367,-503.85132487,0.00033698,3]
[312116228,1705642253376,-1288.13,0.00033698,3]
[312116229,1705642253386,-507.0206374,0.00033698,3]
[312116230,1705642253395,-505.71343342,0.00033698,3]
[312116231,1705642253404,-500.0,0.00033698,3]
[312116232,1705642253413,-968.28,0.00033698,3]
[312116233,1705642253423,-712.94,0.00033698,3]
[312116234,1705642253434,-515.3468188,0.00033698,3]
[312116235,1705642253446,-500.0,0.00033698,3]
[312116236,1705642253455,-882.02,0.00033698,3]
[312116237,1705642253465,-399.71925343,0.00033698,3]
[312116238,1705642253475,-500.0,0.00033698,3]
[312116239,1705642253484,-500.0,0.00033698,3]
[312116240,1705642253494,-1012.5,0.00033698,3]
[312116241,1705642253504,-912.0,0.00033698,3]
[312116242,1705642253514,-1028.62,0.00033698,3]
[312116243,1705642253524,-500.0,0.00033698,3]
[312116244,1705642253533,-8065.62,0.00033698,3]
[312116245,1705642253543,-500.0,0.00033698,3]
[312116246,1705642253552,-810.73,0.00033698,3]
[312116247,1705642253561,-1980.19,0.00033698,3]
[312116248,1705642253571,-5460.48,0.00033698,3]
[312116249,1705642253580,-500.0,0.00033698,3]
[312116250,1705642253589,-506.76501181,0.00033698,3]
[312116251,1705642253598,-500.0,0.00033698,3]
[312116252,1705642253608,-507.79570843,0.00033698,3]
[312116253,1705642253617,-500.0,0.00033698,3]
[312116254,1705642253628,-1729.78,0.00033698,3]
[312116255,1705642253637,-500.0,0.00033698,3]
[312116256,1705642253647,-703.4,0.00033698,3]
[312116257,1705642253655,-502.48,0.00033698,3]
[312116258,1705642253664,-201.51,0.00033698,3]
[312116259,1705642253673,-500.0,0.00033698,3]
[312116260,1705642253731,-2573.61,0.00033698,3]
[312116261,1705642253741,-500.0,0.00033698,3]
[312116262,1705642253750,-502.30125866,0.00033698,3]
[312116263,1705642253759,-500.0,0.00033698,3]
[312116264,1705642253769,-2346.2,0.00033698,3]
[312116265,1705642253778,-500.0,0.00033698,3]
[312116266,1705642253788,-506.90799434,0.00033698,3]
[312116267,1705642253797,-500.0,0.00033698,3]
[312116268,1705642253807,-500.0,0.00033698,3]
[312116269,1705642253816,-500.0,0.00033698,3]
[312116270,1705642253826,-510.74031725,0.00033698,3]
[312116271,1705642253835,-500.0,0.00033698,3]
[312116272,1705642253845,-500.0,0.00033698,3]
[312116273,1705642253855,-2506.63,0.00033698,3]
[312116274,1705642253864,-500.0,0.00033698,3]
[312116275,1705642253874,-503.94559309,0.00033698,3]
[312116276,1705642253883,-763.21,0.00033698,3]
[312116277,1705642253893,-518.63555237,0.00033698,3]
[312116278,1705642253902,-503.27987946,0.00033698,3]
[312116279,1705642253911,-500.0,0.00033698,3]
[312116280,1705642253920,-507.82039817,0.00033698,2]
[312116281,1705642253930,-500.0,0.00033698,3]
[312116282,1705642253940,-500.0,0.00033698,3]
[312116283,1705642253949,-454.99446955,0.00033698,3]
[312116284,1705642253959,-151.0,0.00033698,2]
[312116285,1705642253968,-1206.23882079,0.00033793,2]
[312116286,1705642253977,-385.55693188,0.00033972,3]
[312116287,1705642253987,-500.0,0.00033972,3]
[312116288,1705642253996,-363.7894806,0.00033972,3]
[312116289,1705642254006,-500.0,0.00033972,3]
[312116290,1705642254015,-500.0,0.00033972,3]
[312116291,1705642254025,-503.5224541,0.00033972,3]
[312116292,1705642254035,-500.0,0.00033972,3]
[312116293,1705642254043,-500.0,0.00033972,3]
[312116294,1705642254052,-362.39709641,0.00033972,3]
[312116295,1705642254061,-501.40007869,0.00033972,3]
[312116296,1705642254070,-500.0,0.00033972,3]
[312116297,1705642254079,-505.8093406,0.00033972,3]
[312116298,1705642254088,-500.0,0.00033972,3]
[312116299,1705642254097,-500.0,0.00033972,3]
[312116300,1705642254115,-500.0,0.00033972,3]
[312116301,1705642254133,-500.0,0.00033972,3]
[312116302,1705642254150,-583.97798925,0.00033972,3]
[312116303,1705642254168,-500.0,0.00033972,3]
[312116304,1705642254184,-500.0,0.00033972,3]
[312116305,1705642254201,-500.0,0.00033972,3]
[312116306,1705642254220,-340.87,0.00033972,3]
[312116307,1705642254235,-500.0,0.00033972,3]
[312116308,1705642254252,-500.0,0.00033972,3]
[312116309,1705642254267,-500.0,0.00033972,3]
[312116310,1705642254286,-500.0,0.00033972,3]
[312116311,1705642254305,-500.0,0.00033972,3]
[312116312,1705642254317,-500.0,0.00033972,3]
[312116313,1705642254333,-500.0,0.00033972,3]
[312116314,1705642254348,-250.5552302,0.00033972,3]
[312116315,1705642254359,-504.62502569,0.00033972,3]
[312116316,1705642254373,-500.0,0.00033972,3]
[312116317,1705642254387,-500.0,0.00033972,3]
[312116318,1705642254401,-627.68,0.00033972,3]
[312116319,1705642254415,-500.0,0.00033972,3]
[312116320,1705642254429,-1288.13,0.00033972,3]
[312116321,1705642254446,-563.89,0.00033972,3]
[312116322,1705642254460,-968.28,0.00033972,3]
[312116323,1705642254475,-712.94,0.00033972,3]
[312116324,1705642254488,-500.0,0.00033972,3]
[312116325,1705642254502,-882.02,0.00033972,3]
[312116326,1705642254517,-500.0,0.00033972,3]
[312116327,1705642254531,-912.0,0.00033972,3]
[312116328,1705642254545,-1012.5,0.00033972,3]
[312116329,1705642254558,-1028.62,0.00033972,3]
[312116330,1705642254573,-8065.62,0.00033972,3]
[312116331,1705642254587,-500.0,0.00033972,3]
[312116332,1705642254602,-810.73,0.00033972,3]
[312116333,1705642254616,-1980.19,0.00033972,3]
[312116334,1705642254630,-5460.48,0.00033972,3]
[312116335,1705642254644,-500.0,0.00033972,3]
[312116336,1705642254658,-500.0,0.00033972,3]
[312116337,1705642254673,-500.0,0.00033972,3]
[312116338,1705642254687,-1729.78,0.00033972,3]
[312116339,1705642254702,-500.0,0.00033972,3]
[312116340,1705642254786,-703.4,0.00033972,3]
[312116341,1705642254801,-502.48,0.00033972,3]
[312116342,1705642254810,-500.0,0.00033972,3]
[312116343,1705642254819,-2573.61,0.00033972,3]
[312116344,1705642254828,-500.0,0.00033972,3]
[312116345,1705642254838,-515.65662381,0.00033972,3]
[312116346,1705642254847,-2346.2,0.00033972,3]
[312116347,1705642254857,-500.0,0.00033972,3]
[312116348,1705642254866,-500.0,0.00033972,3]
[312116349,1705642254875,-504.07827703,0.00033972,3]
[312116350,1705642254885,-500.0,0.00033972,3]
[312116351,1705642254894,-500.0,0.00033972,3]
[312116352,1705642254904,-500.0,0.00033972,3]
[312116353,1705642254913,-2506.63,0.00033972,3]
[312116354,1705642254922,-611.19292793,0.00033972,3]
[312116355,1705642254931,-763.21,0.00033972,3]
[312116356,1705642254940,-506.64434181,0.00033972,3]
[312116357,1705642254950,-500.0,0.00033972,3]
[312116358,1705642254959,-151.0,0.00033972,2]
[312116359,1705642254968,-151.0,0.00033972,2]
[312116360,1705642254977,-395.206782,0.00033972,2]
[312116361,1705642254986,-395.206782,0.00033972,2]
[312116362,1705642254995,-161.431924,0.00033973,2]